bitfinex-derivatives/quotes_ETHF0:USTF0_20250727
["timestamp","ask_amount","ask_price","bid_price","bid_amount"]
[1753612802119,1.3172,3798.9,3798.8,6.5786]
[1753612802319,1.3172,3798.9,3798.8,7.10489]
[1753612802515,2.61628,3798.9,3798.8,6.5786]
[1753612802717,1.3644,3799.2,3798.8,6.5786]
[1753612802917,1.71105,3799.2,3798.9,2.0116]
[1753612803118,3.80105,3799.2,3799.1,2.5379]
[1753612803421,3.80105,3799.2,3799.1,0.8055]
[1753612803814,3.80108,3798.9,3798.8,6.5786]
[1753612804013,2.09,3798.9,3798.8,6.5786]
[1753612804217,1.03988,3798.9,3798.8,6.5786]
[1753612804615,3.20948,3798.9,3798.8,6.5786]
[1753612805117,3.80108,3798.9,3798.8,6.5786]
[1753612805813,3.20948,3798.9,3798.8,6.5786]
[1753612806020,2.61628,3798.9,3798.8,6.5786]
[1753612807122,3.20948,3798.9,3798.8,6.5786]
[1753612807720,3.80108,3798.9,3798.8,6.5786]
[1753612809623,3.80108,3798.9,3798.8,5.7457]
[1753612810024,3.80108,3798.9,3798.8,3.7867]
[1753612810423,3.80108,3798.9,3798.8,4.5922]
[1753612810724,0.16865803,3799.4,3799.3,3.89702]
[1753612810919,0.16865803,3799.4,3799.3,7.10482]
[1753612811121,1.08265803,3799.4,3799.3,7.10482]
[1753612811318,0.68225803,3799.4,3799.3,7.10482]
[1753612811622,0.16865803,3799.4,3799.3,7.10482]
[1753612816028,1.0,3800.0,3799.8,3.3708]
[1753612816329,3.2748,3800.5,3800.4,0.52607]
[1753612817120,3.80087,3800.5,3800.4,0.52607]
[1753612817322,1.84326,3800.5,3800.4,0.94137]
[1753612817528,1.84326,3800.5,3800.4,0.4153]
[1753612817926,1.84327,3800.4,3800.3,3.2078]
[1753612818233,3.2748,3799.9,3799.8,3.06405]
[1753612818434,3.2748,3799.9,3799.8,6.27185]
[1753612818732,3.2748,3799.9,3799.8,7.10475]
[1753612819124,3.80094,3799.9,3799.8,7.10475]
[1753612819328,3.80094,3799.9,3799.8,4.0133]
[1753612819525,3.80094,3799.9,3799.8,3.2078]
[1753612819828,3.2748,3799.9,3799.8,7.10475]
[1753612820031,3.80094,3799.9,3799.8,6.5786]
[1753612820228,3.80094,3799.9,3799.8,4.202]
[1753612820433,3.80094,3799.9,3799.8,3.2078]
[1753612822327,3.801,3799.5,3799.4,3.2078]
[1753612822530,3.2748,3799.5,3799.4,4.567]
[1753612822736,3.801,3799.5,3799.4,6.5786]
[1753612823230,3.32564955,3803.4,3801.6,4.38]
[1753612823534,0.90517915,3803.3,3803.1,3.2078]
[1753612823834,1.4967324,3803.2,3803.1,3.2078]
[1753612824129,2.0899324,3803.2,3803.1,3.7335]
[1753612824333,0.9051324,3803.2,3803.1,3.7335]
[1753612824536,0.9051324,3803.2,3803.1,8.7335]
[1753612824736,0.6112,3804.3,3803.8,0.5789]
[1753612824942,0.6112,3804.3,3804.2,3.73335]
[1753612825135,0.7908,3804.3,3804.2,4.31225]
[1753612825330,7.05585117,3804.3,3804.2,3.2078]
[1753612826034,0.7908,3804.3,3804.2,3.2078]
[1753612826733,0.018,3804.3,3804.2,3.7867]
[1753612827530,1.5924,3804.3,3804.2,3.4308]
[1753612827733,2.11793,3804.3,3804.2,3.7282]
[1753612828233,0.6096,3804.3,3804.2,4.4535]
[1753612828437,0.018,3804.3,3804.2,4.4535]
[1753612829138,1.48207803,3805.6,3804.2,8.2078]
[1753612829139,2.4567,3805.5,3804.2,8.2078]
[1753612829435,2.98207,3805.5,3805.4,3.2078]
[1753612830036,8.65392117,3805.5,3805.4,3.2078]
[1753612830838,13.65392117,3805.5,3805.4,3.2078]
[1753612831236,1.7318,3804.9,3804.6,1.2277]
[1753612831533,1.27441,3805.2,3804.9,1.2277]
[1753612831737,3.21305117,3805.2,3805.0,0.7253]
[1753612832039,4.46336117,3805.2,3805.1,0.5024]
[1753612832436,5.44616117,3805.2,3805.1,0.205]
[1753612832936,2.93637045,3805.2,3805.1,0.84263181]
[1753612833236,1.50819,3805.4,3805.3,0.205]
[1753612833435,2.23309,3805.4,3805.3,3.54803181]
[1753612833635,4.69714117,3805.4,3805.3,3.54803181]
[1753612834640,4.69714117,3805.4,3805.3,3.79441597]
[1753612834940,5.44614117,3805.4,3805.3,3.54803181]
[1753612836041,5.44614117,3805.4,3805.3,3.79443455]
[1753612836243,5.44614117,3805.4,3805.3,3.75303181]
[1753612836538,5.44614117,3805.4,3805.3,4.05043181]
[1753612838135,5.44614117,3805.4,3805.3,3.75303181]
[1753612839040,5.44614117,3805.4,3805.3,3.54803181]
[1753612839841,1.31216,3809.2,3807.3,0.7253]
[1753612840034,0.52486,3809.2,3809.1,3.2078]
[1753612840237,1.24976,3809.2,3809.1,2.449]
[1753612840432,0.7249,3809.2,3809.1,2.449]
[1753612840838,0.2,3809.9,3809.3,0.52483]
[1753612841136,1.44966,3809.9,3809.8,3.2078]
[1753612841338,1.44966,3809.9,3809.8,4.649]
[1753612841543,0.72476,3809.9,3809.8,5.1673]
[1753612841840,1.70756,3809.9,3809.8,4.649]
[1753612842037,2.43246,3809.9,3809.8,4.649]
[1753612843031,2.43246,3809.9,3809.8,3.9331]
[1753612843536,1.70756,3809.9,3809.8,5.1673]
[1753612843732,0.72476,3809.9,3809.8,5.1673]
[1753612844443,1.70756,3809.9,3809.8,4.649]
[1753612845049,0.72476,3809.9,3809.8,5.1673]
[1753612846240,1.70756,3809.9,3809.8,5.1673]
[1753612846643,0.72476,3809.9,3809.8,5.47982918]
[1753612847145,0.72476,3809.9,3809.8,5.1673]
[1753612849141,1.70756,3809.9,3809.8,5.1673]
[1753612849446,0.72476,3809.9,3809.8,5.1673]
[1753612849646,2.43246,3809.9,3809.8,4.10352]
[1753612850345,3.18146,3809.9,3809.8,2.66232]
[1753612850544,0.72476,3809.9,3809.8,4.62182]
[1753612851848,0.72476,3809.9,3809.8,9.62182]
[1753612852444,0.72476,3809.9,3809.8,4.62182]
[1753612859256,2.57936,3809.9,3809.8,4.62182]
[1753612859550,3.36266,3809.9,3809.8,2.66232]
[1753612859756,1.74506,3809.9,3809.8,5.02212]
[1753612860348,3.56576,3809.9,3809.8,6.80222]
[1753612860545,5.18336,3809.9,3809.8,3.20732]
[1753612861051,5.18336,3809.9,3809.8,3.97982]
[1753612861252,4.20011,3809.5,3809.4,1.4736]
[1753612861556,0.52481,3809.5,3809.4,7.65986808]
[1753612861751,0.52481,3809.5,3809.4,7.3477]
[1753612863254,0.52481,3809.5,3809.4,7.58794008]
[1753612864554,0.52481,3809.6,3809.4,7.58794008]
[1753612864760,5.18336,3809.9,3809.8,0.545]
[1753612865053,5.18336,3809.9,3809.8,4.5253]
[1753612865257,5.18336,3809.9,3809.8,5.3565]
[1753612865452,5.18336,3809.9,3809.8,5.8905]
[1753612866450,5.18336,3809.9,3809.8,5.2831383]
[1753612866766,5.18336,3809.9,3809.8,7.3477]
[1753612867156,5.18336,3809.9,3809.8,6.81592947]
[1753612867357,5.18336,3809.9,3809.8,3.97712947]
[1753612867561,5.18336,3809.9,3809.8,3.43212947]
[1753612867758,5.19951512,3809.9,3809.8,3.43212947]
[1753612868156,4.41621512,3809.9,3809.8,8.09679947]
[1753612868355,0.94655512,3809.9,3809.8,9.47341989]
[1753612868560,1.47131512,3809.9,3809.8,9.47341989]
[1753612868862,1.47131512,3809.9,3809.8,9.00820475]
[1753612869060,0.94655512,3809.9,3809.8,9.00820475]
[1753612869253,0.018,3810.3,3809.8,5.26905584]
[1753612869453,3.6753,3811.0,3810.9,1.9102]
[1753612869663,4.4586,3811.0,3810.9,5.28362947]
[1753612869853,4.4586,3811.0,3810.9,5.80824947]
[1753612870052,4.4586,3811.0,3810.9,3.97712947]
[1753612870253,4.4586,3811.0,3810.9,5.1052721]
[1753612870454,4.98321,3811.0,3810.9,4.5806521]
[1753612870650,0.20574739,3811.7,3811.6,0.52453]
[1753612870856,1.38257805,3813.0,3812.3,1.31108]
[1753612871063,1.38257805,3813.1,3813.0,2.58423]
[1753612871255,1.8546,3813.3,3813.0,0.7561]
[1753612871459,0.2,3813.9,3813.8,2.58412]
[1753612871651,1.8546,3814.9,3814.4,0.5313]
[1753612871853,0.8343,3815.2,3814.9,2.0599]
[1753612872055,0.7833,3814.9,3814.8,3.2078]
[1753612872264,2.6379,3814.9,3814.8,3.2078]
[1753612872759,0.2,3815.9,3814.8,3.2078]
[1753612872760,2.8379,3815.9,3814.8,3.2078]
[1753612872967,2.8379,3815.9,3815.8,3.2078]
[1753612873160,2.8379,3815.9,3815.8,4.5116]
[1753612873161,1.2203,3815.9,3815.8,4.5116]
[1753612873368,1.0203,3816.9,3816.0,1.3038]
[1753612873561,1.8546,3816.9,3816.8,3.2078]
[1753612873958,0.52388,3816.3,3816.2,3.2078]
[1753612874278,3.16178,3816.3,3816.2,3.2078]
[1753612874461,2.6379,3816.3,3816.2,3.2078]
[1753612874763,0.8343,3816.6,3816.3,1.3038]
[1753612874968,0.8343,3816.6,3816.2,3.2078]
[1753612874969,1.8036,3816.3,3816.2,3.2078]
[1753612875267,1.30924,3817.7,3816.2,3.2078]
[1753612875568,3.2078,3817.4,3816.5,3.2078]
[1753612875963,0.52384,3816.6,3816.5,3.2078]
[1753612876163,3.16174,3816.6,3816.5,3.2078]
[1753612877064,0.52389,3816.2,3816.1,3.2078]
[1753612877269,2.37849,3816.2,3816.1,3.9803]
[1753612877461,2.37849,3816.2,3815.5,0.8312]
[1753612877462,0.52395,3815.8,3815.7,3.2078]
[1753612877768,2.37855,3815.8,3815.7,3.2078]
[1753612877958,1.8546,3815.8,3815.7,3.2078]
[1753612878162,2.37858,3815.6,3815.5,3.2078]
[1753612878567,3.2078,3816.9,3815.1,3.2078]
[1753612878768,2.37858,3815.6,3815.5,3.9803]
[1753612878969,2.37858,3815.6,3815.5,4.8115]
[1753612878970,1.0203,3815.6,3815.5,4.8115]
[1753612879171,1.8546,3815.6,3815.5,3.9803]
[1753612879473,1.8546,3815.6,3815.5,3.2078]
[1753612879768,7.37858,3815.6,3815.5,3.2078]
[1753612879966,7.37858,3815.6,3815.1,0.7725]
[1753612879967,2.37863,3815.2,3815.1,3.9803]
[1753612880173,1.8546,3815.2,3815.1,3.9803]
[1753612880572,0.52389,3816.3,3815.2,2.3598]
[1753612880772,1.0203,3816.2,3816.0,3.9803]
[1753612880973,1.0203,3816.1,3816.0,4.8115]
[1753612881170,1.0203,3816.4,3816.1,2.3598]
[1753612881362,1.0203,3816.4,3816.2,2.3598]
[1753612881564,1.0203,3816.9,3816.4,0.7725]
[1753612881862,0.8343,3817.4,3816.9,0.7725]
[1753612882067,1.0203,3817.3,3817.1,1.6037]
[1753612882269,1.35803,3817.4,3817.1,1.6037]
[1753612882270,1.35803,3817.4,3817.2,0.7725]
[1753612882467,1.0,3820.0,3817.2,0.7725]
[1753612882468,0.2,3817.9,3817.2,3.9803]
[1753612882771,2.37834,3817.3,3817.2,3.9803]
[1753612882968,1.0203,3817.8,3817.3,0.7725]
[1753612883167,1.0203,3817.4,3817.2,3.9803]
[1753612883470,0.52373,3817.4,3817.3,0.7725]
[1753612883671,1.54403,3817.4,3817.3,0.7725]
[1753612883874,1.0203,3817.4,3817.3,1.6037]
[1753612884273,2.37833,3817.4,3817.3,0.7725]
[1753612884568,2.37833,3817.4,3817.2,3.2078]
[1753612884569,0.52374,3817.3,3817.2,3.2078]
[1753612884771,2.43574,3817.3,3817.2,3.2078]
[1753612884969,1.8546,3817.3,3817.2,4.8115]
[1753612885171,2.37834,3817.3,3817.2,3.2078]
[1753612885469,1.8546,3817.3,3817.2,3.9803]
[1753612885675,1.0203,3817.3,3817.2,4.8115]
[1753612886068,1.8546,3817.3,3817.2,4.8115]
[1753612886263,3.2078,3818.2,3817.2,4.8115]
[1753612886569,1.0,3820.0,3819.0,0.6639]
[1753612886870,2.0546,3819.9,3819.8,3.9803]
[1753612887272,2.57799,3819.9,3819.8,3.9803]
[1753612887574,2.2838,3819.9,3819.8,3.2078]
[1753612887870,2.80719,3819.9,3819.8,3.2078]
[1753612888375,2.2838,3819.9,3819.8,4.0624]
[1753612888776,1.2004,3820.9,3819.9,2.4845]
[1753612889074,2.0838,3821.1,3820.2,4.1026]
[1753612889372,1.30795,3821.5,3820.4,0.8546]
[1753612889373,2.6071,3820.5,3820.4,0.8546]
[1753612889572,2.6071,3820.5,3820.4,3.2078]
[1753612889769,0.52337,3820.0,3819.9,0.8546]
[1753612890074,0.6271,3819.7,3818.8,0.8546]
[1753612890277,0.52352,3818.9,3818.8,0.8546]
[1753612890579,0.52358,3818.5,3818.4,3.2078]
[1753612890872,1.2004,3818.7,3818.4,2.9185]
[1753612891176,2.35107,3818.6,3818.5,0.8546]
[1753612891366,0.52365,3818.0,3817.9,1.7494]
[1753612891571,2.35115,3818.0,3817.9,0.8546]
[1753612892978,2.35116,3817.9,3817.8,0.19382637]
[1753612893174,2.47986,3817.9,3817.8,0.19382637]
[1753612893379,2.35124,3817.3,3817.2,0.8546]
[1753612893570,0.52387,3816.4,3816.3,2.0639]
[1753612893779,0.52386,3816.5,3816.3,4.0624]
[1753612893973,0.52386,3816.5,3816.4,2.9185]
[1753612894281,2.35136,3816.5,3816.4,0.8546]
[1753612894478,0.52388,3816.3,3816.2,0.01834261]
[1753612894775,2.35138,3816.3,3816.2,0.01834261]
[1753612894972,2.35138,3816.3,3814.3,1.31036]
[1753612894973,2.35143,3815.9,3815.8,1.04852796]
[1753612895274,7.46183,3815.9,3815.8,0.19392796]
[1753612895978,0.52393,3815.9,3815.8,0.85460796]
[1753612896275,5.52393,3815.9,3815.8,7.96e-06]
[1753612897477,31.04793,3815.9,3815.8,7.96e-06]
[1753612897772,5.52393,3815.9,3815.8,7.96e-06]
[1753612897969,31.02893,3815.9,3815.8,7.96e-06]
[1753612898578,0.52414,3814.4,3814.3,4.0624]
[1753612898876,0.52421,3813.9,3813.8,1.04862966]
[1753612899183,0.52421,3813.9,3813.8,1.94342966]
[1753612899376,2.35171,3813.9,3813.8,0.19402966]
[1753612899570,7.46211,3813.9,3813.8,0.19402966]
[1753612899772,0.433,3813.8,3813.2,0.01835704]
[1753612899972,1.72469,3813.3,3813.2,0.01835704]
[1753612900173,1.72469,3813.3,3813.2,0.87295704]
[1753612900378,2.15769,3813.3,3813.2,0.87295704]
[1753612900976,7.15769,3813.3,3813.2,0.01835704]
[1753612901178,2.13946,3812.8,3812.7,3.2078]
[1753612901376,2.13946,3812.8,3812.2,0.8948]
[1753612901377,1.2004,3812.8,3812.4,0.5244]
[1753612901572,0.52441,3812.5,3812.4,0.8546]
[1753612901881,1.7248,3812.5,3812.4,0.8546]
[1753612902083,2.1395,3812.5,3812.4,0.8546]
[1753612902477,7.1395,3812.5,3812.4,0.8546]
[1753612902678,0.52444,3812.2,3812.1,4.0624]
[1753612902873,0.52448,3811.9,3811.8,0.19413146]
[1753612903080,1.72488,3811.9,3811.8,0.19413146]
[1753612903280,2.13958,3811.9,3811.8,0.19413146]
[1753612903672,2.13958,3811.9,3811.8,1.04873146]
[1753612903875,7.13958,3811.9,3811.8,0.19413146]
[1753612904879,7.24998,3811.9,3811.8,0.19413146]
[1753612905179,32.59298,3811.9,3811.8,0.19413146]
[1753612905581,1.7255,3811.2,3810.9,3.2078]
[1753612905887,2.13976,3810.6,3810.5,3.2078]
[1753612906076,1.6151,3810.6,3810.5,4.0624]
[1753612906276,37.756,3811.7,3810.5,4.0624]
[1753612906277,26.5154,3811.1,3810.5,6.65098]
[1753612906480,1.2004,3811.1,3811.0,0.52461]
[1753612906678,0.4147,3812.0,3811.4,2.9185]
[1753612906878,0.52448,3811.9,3811.8,0.8546]
[1753612907178,1.6151,3812.0,3811.8,0.8546]
[1753612907179,1.6151,3812.0,3811.9,1.37908]
[1753612907384,1.2004,3812.4,3812.1,0.52445]
[1753612907580,3.2078,3812.5,3812.3,2.0237]
[1753612907786,3.2078,3812.5,3812.4,1.7494]
[1753612907978,3.7322,3812.5,3812.4,1.7494]
[1753612908184,3.2078,3812.5,3812.4,3.44292]
[1753612909183,0.2,3813.9,3812.8,2.9185]
[1753612909184,3.2078,3813.3,3812.8,2.9185]
[1753612909382,2.13943,3813.0,3812.9,0.8546]
[1753612909782,1.6151,3813.0,3812.9,0.8546]
[1753612910081,2.13943,3813.0,3812.9,1.37895]
[1753612910482,2.13943,3813.0,3812.9,0.8546]
[1753612910677,1.2004,3813.0,3812.9,1.37895]
[1753612910981,1.2004,3813.2,3813.1,0.8546]
[1753612911187,1.2004,3813.2,3813.1,2.27372]
[1753612911485,3.2078,3813.3,3813.2,1.69341]
[1753612911684,0.52432,3813.1,3812.9,0.52434]
[1753612912077,1.2004,3812.5,3811.5,1.31135]
[1753612912280,1.7605,3813.1,3812.4,1.1691]
[1753612912481,0.52437,3812.8,3812.4,1.1691]
[1753612912684,3.2078,3813.3,3812.5,3.2078]
[1753612912891,3.2078,3813.3,3812.6,1.1691]
[1753612913187,0.52433,3813.1,3812.9,0.52434]
[1753612913382,0.52435,3812.9,3812.8,3.44286]
[1753612913689,0.52435,3812.9,3812.8,2.9185]
[1753612913886,2.28485,3812.9,3812.8,0.8546]
[1753612914684,0.0623,3815.9,3813.7,2.634]
[1753612914885,0.8572,3817.4,3816.7,3.20779]
[1753612915091,1.86355967,3818.1,3816.2,0.52389]
[1753612915092,0.22141868,3817.8,3817.3,3.2078]
[1753612915281,0.8572,3817.5,3815.8,1.30985]
[1753612915486,1.2004,3817.4,3815.7,1.30988]
[1753612915680,2.941,3817.4,3817.3,3.2078]
[1753612916787,3.46473,3817.4,3817.3,3.2078]
[1753612917993,8.46473,3817.4,3817.3,3.2078]
[1753612918487,3.46473,3817.4,3817.3,3.2078]
[1753612919184,3.46473,3817.4,3817.3,2.66121]
[1753612919594,1.41872,3816.7,3816.6,0.2539]
[1753612919794,1.41872,3816.7,3816.6,3.4617]
[1753612920598,1.41872,3816.7,3816.6,3.23233]
[1753612920887,0.52389,3816.2,3816.1,3.5464]
[1753612921284,1.41879,3816.2,3816.1,2.67583]
[1753612921485,1.41879,3816.2,3815.4,3.5464]
[1753612921486,0.52399,3815.5,3815.4,3.5464]
[1753612921789,2.66099,3815.5,3815.4,3.2078]
[1753612922594,3.65549,3815.5,3815.4,3.2078]
[1753612922790,2.66099,3815.5,3815.4,3.2078]
[1753612922996,0.9945,3816.0,3815.4,3.5464]
[1753612923191,0.9945,3816.0,3815.8,3.2078]
[1753612923192,29.12993,3815.9,3815.8,3.2078]
[1753612923392,3.2078,3816.9,3815.8,3.2078]
[1753612923595,0.8949,3816.7,3816.5,3.2078]
[1753612923793,3.65534,3816.6,3816.5,3.2078]
[1753612924091,2.66084,3816.6,3816.5,3.2078]
[1753612924487,0.8949,3816.6,3816.5,3.2078]
[1753612924689,2.2366,3817.0,3816.6,0.3386]
[1753612924886,0.8949,3816.9,3816.8,0.5238]
[1753612925087,0.8949,3816.9,3816.8,4.0702]
[1753612925289,26.457,3817.2,3817.1,0.52377]
[1753612925491,0.8949,3817.2,3816.9,0.3386]
[1753612925694,1.41867,3817.2,3816.9,0.3386]
[1753612925893,0.52375,3817.3,3816.9,0.3386]
[1753612926095,1.51823,3817.4,3817.2,0.52375]
[1753612926391,3.2078,3817.8,3817.2,0.52375]
[1753612926392,1.2421,3817.8,3817.4,0.52373]
[1753612926591,0.2,3817.9,3817.6,3.2078]
[1753612926807,0.2,3817.9,3817.8,0.86227]
[1753612926991,0.2,3817.9,3817.8,0.91477]
[1753612927701,0.2,3817.9,3817.6,3.2078]
[1753612927900,1.0949,3817.9,3817.8,0.52367]
[1753612928104,3.1315,3817.7,3817.6,3.2078]
[1753612928306,3.65519,3817.7,3817.6,3.2078]
[1753612928602,2.137,3817.7,3817.6,3.7315]
[1753612928796,2.137,3817.7,3817.6,3.2078]
[1753612928991,3.65519,3817.7,3817.6,3.2078]
[1753612933098,2.61774,3818.8,3817.6,3.2078]
[1753612933099,1.2421,3819.8,3819.0,0.3386]
[1753612933297,3.2078,3819.4,3817.9,3.2078]
[1753612933596,3.65515,3818.0,3817.9,3.2078]
[1753612933798,3.65515,3818.0,3817.9,3.73146]
[1753612934098,3.65515,3818.0,3817.9,3.2078]
[1753612934289,0.8949,3818.0,3817.9,3.73146]
[1753612934495,0.8949,3818.0,3817.9,4.07006]
[1753612935098,1.8894,3818.5,3818.4,0.52359]
[1753612935298,0.8949,3818.5,3818.4,0.86219]
[1753612935492,1.2421,3818.8,3818.4,0.86219]
[1753612935493,0.8949,3818.8,3818.7,0.86215]
[1753612935699,0.8949,3818.8,3818.7,4.06995]
[1753612936397,0.8949,3818.8,3818.7,3.73135]
[1753612936398,1.41844,3818.8,3818.7,3.73135]
[1753612936705,0.8949,3817.8,3817.5,3.2078]
[1753612936898,0.52369,3817.7,3817.6,2.7718]
[1753612937198,0.52369,3817.7,3817.6,2.2481]
[1753612937394,3.1315,3817.6,3817.5,3.2078]
[1753612937595,0.8949,3818.8,3818.7,0.52355]
[1753612937795,0.8949,3818.8,3818.7,2.77165]
[1753612938001,1.76563,3818.9,3818.4,3.2078]
[1753612938002,0.52352,3819.0,3818.5,2.2481]
[1753612938203,0.52356,3818.7,3818.6,0.52356]
[1753612938797,0.8949,3818.6,3818.5,0.52356]
[1753612939095,0.8949,3818.6,3818.0,1.30912]
[1753612939096,2.137,3818.3,3818.0,3.2078]
[1753612939292,2.2366,3818.0,3817.6,5.4559]
[1753612939594,1.41856,3817.9,3817.8,0.52367]
[1753612939801,0.52362,3818.3,3817.7,2.2481]
[1753612940001,0.52361,3818.3,3818.1,2.77173]
[1753612940199,0.52361,3818.3,3818.2,0.52362]
[1753612940404,3.1315,3818.3,3818.2,0.52362]
[1753612940999,3.65512,3818.2,3818.1,0.52362]
[1753612941400,0.52362,3818.2,3818.1,0.52362]
[1753612941599,0.8949,3818.2,3818.1,0.52362]
[1753612941907,0.52369,3817.7,3817.6,3.2078]
[1753612942104,2.66069,3817.7,3817.6,3.2078]
[1753612942698,2.66069,3817.7,3817.6,4.1121]
[1753612942699,1.41859,3817.7,3817.6,4.1121]
[1753612942903,1.41859,3817.7,3817.6,5.4559]
[1753612943199,2.2366,3818.1,3817.6,4.0957]
[1753612943398,0.52367,3817.9,3817.8,0.52367]
[1753612943603,1.41857,3817.9,3817.8,1.42797]
[1753612943793,0.52363,3818.1,3818.0,2.2481]
[1753612943998,1.41853,3818.1,3818.0,1.42795]
[1753612944303,1.41853,3818.1,3818.0,2.77175]
[1753612944502,1.41853,3818.1,3818.0,2.2481]
[1753612944701,1.99381754,3821.6,3820.6,3.2078]
[1753612944899,0.03043201,3821.6,3821.5,3.73097]
[1753612945100,0.018,3822.3,3822.2,0.52307]
[1753612945399,2.75845967,3823.6,3822.2,8.2078]
[1753612945597,0.57062262,3823.5,3821.5,0.26139185]
[1753612945802,2.137,3823.5,3823.4,3.2078]
[1753612946101,1.46552214,3823.5,3823.4,3.2078]
[1753612946294,0.57062214,3823.5,3823.4,3.2078]
[1753612946704,0.57062214,3823.5,3823.4,8.2078]
[1753612947296,0.57062214,3823.5,3823.4,3.2078]
[1753612947502,0.57062214,3823.5,3823.4,8.7269]
[1753612947701,1.09351214,3823.5,3823.4,8.7269]
[1753612947901,0.52289,3823.5,3823.4,3.7269]
[1753612948197,3.16533009,3823.5,3823.2,3.2078]
[1753612948403,0.52291,3823.4,3823.2,3.2078]
[1753612948706,0.2,3823.9,3823.2,3.2078]
[1753612948901,0.2,3823.9,3821.5,1.30792]
[1753612948902,0.72284,3823.9,3823.8,3.2078]
[1753612949105,4.81077009,3823.9,3823.8,2.67623]
[1753612949318,2.5847,3823.9,3823.3,0.2225]
[1753612949510,0.2,3823.9,3823.8,3.7269]
[1753612949897,1.1226,3823.9,3823.8,3.2078]
[1753612950298,0.2,3823.9,3823.8,3.7269]
[1753612950906,0.2,3823.9,3823.8,9.24975]
[1753612951206,1.1226,3823.9,3823.8,3.7269]
[1753612951506,0.87393009,3823.9,3823.8,3.2078]
[1753612952212,4.28793009,3823.9,3823.8,3.2078]
[1753612952798,4.28793009,3823.9,3823.8,3.73065]
[1753612953204,4.28793009,3823.9,3823.8,3.2078]
[1753612953399,0.9226,3823.8,3823.6,0.52287]
[1753612953600,3.414,3823.8,3823.7,0.52287]
[1753612953805,3.414,3823.7,3823.6,0.52288]
[1753612954310,3.414,3823.5,3823.4,3.2078]
[1753612954611,4.04241208,3823.5,3823.4,3.73071]
[1753612954910,4.04241208,3823.5,3823.4,3.2078]
[1753612955114,4.04241208,3823.5,3823.4,3.73071]
[1753612955306,4.04241208,3823.5,3823.4,3.2078]
[1753612955507,31.30741208,3823.5,3823.4,3.2078]
[1753612955708,2.4914,3823.4,3822.6,3.2078]
[1753612955911,0.67393009,3822.7,3822.6,3.2078]
[1753612956209,0.67393009,3822.8,3822.7,1.5711]
[1753612956410,29.7104,3823.3,3823.2,0.52293]
[1753612956610,30.633,3823.3,3823.2,0.52293]
[1753612956805,4.08793009,3823.3,3823.1,0.52294]
[1753612957005,3.414,3823.2,3823.1,0.52294]
[1753612957205,31.27693009,3823.2,3823.1,3.73074]
[1753612957405,4.08793009,3823.2,3823.1,3.73074]
[1753612957615,3.05863009,3823.2,3823.1,3.73074]
[1753612958013,1.59653009,3823.2,3823.1,5.09503595]
[1753612958316,4.08793009,3823.2,3823.1,4.0467031]
[1753612958516,4.08793009,3823.2,3823.1,3.2078]
[1753612958807,4.08793009,3823.2,3823.1,3.52375182]
[1753612959012,4.61086009,3823.2,3823.1,3.2078]
[1753612959314,3.414,3823.1,3823.0,0.52296]
[1753612959517,30.51,3823.1,3823.0,0.52296]
[1753612959713,31.18393009,3823.1,3823.0,0.52296]
[1753612960410,2.4914,3823.0,3822.9,0.52297]
[1753612960604,2.4914,3823.0,3822.8,3.2078]
[1753612960605,4.08793009,3822.9,3822.8,3.73079]
[1753612960807,4.08793009,3822.9,3822.2,1.30765]
[1753612960808,3.93699,3822.8,3822.5,0.52302]
[1753612961119,4.08793009,3822.1,3822.0,3.7309]
[1753612961415,3.414,3822.1,3822.0,3.7309]
[1753612961602,4.08793009,3822.1,3822.0,3.7309]
[1753612962204,4.61101009,3822.1,3822.0,3.2078]
[1753612962409,31.06293009,3822.1,3822.0,3.2078]
[1753612962612,31.58601009,3822.1,3822.0,3.2078]
[1753612963010,31.06293009,3822.1,3822.0,3.2078]
[1753612963210,31.06293009,3822.1,3821.6,0.74339316]
[1753612963510,0.52311,3821.9,3821.4,3.2078]
[1753612963704,3.414,3821.7,3821.6,0.52314]
[1753612963903,3.414,3821.7,3821.6,0.52315]
[1753612964106,0.67393009,3821.7,3821.4,3.2078]
[1753612964415,4.08793009,3821.5,3821.4,3.73098]
[1753612964812,4.08793009,3821.5,3821.4,3.2078]
[1753612965710,4.61110009,3821.5,3821.4,3.2078]
[1753612965912,4.08793009,3821.5,3821.4,3.2078]
[1753612966103,4.61110009,3821.5,3821.4,3.2078]
[1753612966306,4.08793009,3821.5,3821.4,3.2078]
[1753612966507,4.61110009,3821.5,3821.4,3.2078]
[1753612966715,4.08793009,3821.5,3821.4,3.2078]
[1753612967109,4.61110009,3821.5,3821.4,3.2078]
[1753612967506,4.61110009,3821.5,3820.2,0.52334]
[1753612967507,0.5233,3820.6,3820.2,0.52334]
[1753612967707,0.9226,3820.4,3820.2,4.6138]
[1753612967907,3.93739,3819.9,3819.8,0.19372488]
[1753612968108,4.61132009,3819.9,3819.8,0.41494513]
[1753612968309,9.61132009,3819.9,3819.8,0.19372488]
[1753612968516,3.414,3819.7,3818.6,4.6138]
[1753612968817,3.93745,3819.4,3819.3,0.2212643]
[1753612969314,0.52347,3819.3,3818.6,4.6138]
[1753612969514,31.32640009,3819.3,3818.6,4.6138]
[1753612969710,29.77263009,3819.3,3818.8,1.406]
[1753612969911,29.77263009,3819.3,3819.2,1.06642821]
[1753612970214,3.2078,3819.9,3819.2,3.39672821]
[1753612970215,2.3847,3819.9,3819.2,3.39672821]
[1753612970515,3.2078,3820.4,3819.4,3.73125]
[1753612970516,2.3847,3819.5,3819.4,3.73125]